[Event "Mitropa Online Cup Open 2021"]
[Site "Hybrid"]
[Date "2021.05.04"]
[Round "9.5"]
[White "Kriebel, Tadeas"]
[Black "Baenziger, Fabian"]
[Result "1/2-1/2"]
[ECO "B92"]
[WhiteElo "2527"]
[BlackElo "2394"]
[Annotator "ChessBase"]
[PlyCount "126"]
[EventDate "2021.05.04"]
[EventType "team-tourn"]
[EventCountry "NET"]
[SourceTitle "playchess.com"]
[Source "ChessBase"]
[SourceQuality "1"]
[WhiteTeam "Czech Republic"]
[BlackTeam "Switzerland"]
[WhiteTeamCountry "CZE"]
[BlackTeamCountry "SUI"]
[TimeControl "40/5400+30:1800+30"]

1. e4 {[%emt 0:00:00]} c5 {[%emt 0:00:07]} 2. Nf3 {[%emt 0:00:06]} d6 {[%emt 0:00:05]} 3. d4 {[%emt 0:00:05]} cxd4 {[%emt 0:00:05]} 4. Nxd4 {[%emt 0:00:04]} Nf6 {[%emt 0:00:07]} 5. Nc3 {[%emt 0:00:06]} a6 {[%emt 0:00:06]} 6. Be2 {[%emt 0:00:05]} e5 {[%emt 0:00:04]} 7. Nb3 {[%emt 0:00:05]} Be7 {[%emt 0:00:05]} 8. Bg5 {[%emt 0:00:06]} Be6 {[%emt 0:01:44]} 9. Bxf6 {[%emt 0:00:05]} Bxf6 {[%emt 0:00:06]} 10. Qd3 {[%emt 0:00:15]} O-O {[%emt 0:01:28]} 11. Rd1 {[%emt 0:00:12]} Be7 {[%emt 0:14:02]} 12. Nd5 {[%emt 0:00:06]} Bxd5 {[%emt 0:01:29]} 13. Qxd5 {[%emt 0:00:06]} Qc7 {[%emt 0:00:05]} 14. Bg4 {[%emt 0:00:05]} a5 {[%emt 0:07:12]} 15. O-O {[%emt 0:20:28]} a4 {[%emt 0:08:44]} 16. Nd2 {[%emt 0:05:18]} Na6 {[%emt 0:05:30]} 17. Nc4 {[%emt 0:05:50]} Nc5 {[%emt 0:16:37]} 18. a3 {[%emt 0:03:08]} g6 {[%emt 0:03:41]} 19. g3 {[%emt 0:03:47]} b5 {[%emt 0:10:53]} 20. Ne3 {[%emt 0:02:53]} Bg5 {[%emt 0:00:37]} 21. Ng2 {[%emt 0:01:14]} Kg7 {[%emt 0:03:44]} 22. h4 {[%emt 0:00:50]} Bh6 {[%emt 0:00:45]} 23. c3 {[%emt 0:06:41]} Rad8 {[%emt 0:01:12]} 24. Be2 {[%emt 0:03:43]} Qb6 {[%emt 0:00:06]} 25. Ne1 {[%emt 0:00:58]} Kh8 {[%emt 0:02:57]} 26. Nd3 {[%emt 0:01:55]} Nxd3 {[%emt 0:02:28]} 27. Bxd3 {[%emt 0:04:58]} f5 {[%emt 0:00:31]} 28. Qxb5 {[%emt 0:06:06]} Qa7 {[%emt 0:00:30]} 29. Qa6 {[%emt 0:05:16]} Qd7 {[%emt 0:02:12]} 30. Bb5 {[%emt 0:00:29]} Qe6 {[%emt 0:00:05]} 31. Bc4 {[%emt 0:01:40]} Qd7 {[%emt 0:01:27]} 32. Qb5 {[%emt 0:05:52]} Qc8 {[%emt 0:00:16]} 33. exf5 {[%emt 0:06:12]} gxf5 {[%emt 0:00:14]} 34. Bd5 {[%emt 0:04:35]} f4 {[%emt 0:00:46]} 35. Qb7 {[%emt 0:05:42]} fxg3 {[%emt 0:01:43]} 36. Qxc8 {[%emt 0:00:06]} gxf2+ {[%emt 0:00:22]} 37. Rxf2 {[%emt 0:00:21]} Rxc8 {[%emt 0:00:12]} 38. Rxf8+ {[%emt 0:02:03]} Rxf8 {[%emt 0:00:10]} 39. Bc6 {[%emt 0:04:27]} Be3+ {[%emt 0:01:24]} 40. Kg2 {[%emt 0:00:00]} Bc5 {[%emt 0:00:00]} 41. Rd2 {[%emt 0:02:08]} Rf4 {[%emt 0:14:16]} 42. Kg3 {[%emt 0:03:17]} Kg7 {[%emt 0:00:43]} 43. Rc2 {[%emt 0:00:46]} Kf6 {[%emt 0:03:32]} 44. c4 {[%emt 0:00:32]} Rd4 {[%emt 0:03:26]} 45. Bxa4 {[%emt 0:00:59]} Rd3+ {[%emt 0:06:15]} 46. Kg2 {[%emt 0:02:05]} e4 {[%emt 0:02:40]} 47. Bc6 {[%emt 0:02:52]} Rb3 {[%emt 0:02:41]} 48. Bxe4 {[%emt 0:00:58]} Bd4 {[%emt 0:02:34]} 49. Bxh7 {[%emt 0:00:56]} Bxb2 {[%emt 0:01:35]} 50. a4 {[%emt 0:01:15]} Be5 {[%emt 0:00:21]} 51. Be4 {[%emt 0:05:21]} Rg3+ {[%emt 0:01:17]} 52. Kf1 {[%emt 0:00:37]} Bd4 {[%emt 0:03:19]} 53. h5 {[%emt 0:06:43]} Ke5 {[%emt 0:02:31]} 54. Bg2 {[%emt 0:01:28]} Rg5 {[%emt 0:01:06]} 55. Re2+ {[%emt 0:00:20]} Kf6 {[%emt 0:00:03]} 56. Re4 {[%emt 0:00:31]} Bc5 {[%emt 0:00:05]} 57. Bf3 {[%emt 0:03:46]} Rg1+ {[%emt 0:00:43]} 58. Ke2 {[%emt 0:00:04]} Ra1 {[%emt 0:00:03]} 59. Rg4 {[%emt 0:00:51]} Rxa4 {[%emt 0:00:41]} 60. h6 {[%emt 0:00:35]} Ra2+ {[%emt 0:00:16]} 61. Kd3 {[%emt 0:00:52]} Rh2 {[%emt 0:00:39]} 62. Rf4+ {[%emt 0:00:39]} Kg5 {[%emt 0:00:15]} 63. Rg4+ {[%emt 0:00:41]} Kf6 {[%emt 0:00:03]} 1/2-1/2

[Event "Mitropa Online Cup Open 2021"]
[Site "Hybrid"]
[Date "2021.05.04"]
[Round "9.5"]
[White "Kurmann, Oliver"]
[Black "Babula, Vlastimil"]
[Result "1/2-1/2"]
[ECO "B42"]
[WhiteElo "2437"]
[BlackElo "2559"]
[Annotator "ChessBase"]
[PlyCount "84"]
[EventDate "2021.05.04"]
[EventType "team-tourn"]
[EventCountry "NET"]
[SourceTitle "playchess.com"]
[Source "ChessBase"]
[SourceQuality "1"]
[WhiteTeam "Switzerland"]
[BlackTeam "Czech Republic"]
[WhiteTeamCountry "SUI"]
[BlackTeamCountry "CZE"]
[TimeControl "40/5400+30:1800+30"]

1. e4 {[%emt 0:00:00]} c5 {[%emt 0:00:10]} 2. Nf3 {[%emt 0:00:04]} e6 {[%emt 0:00:10]} 3. d4 {[%emt 0:00:04]} cxd4 {[%emt 0:00:08]} 4. Nxd4 {[%emt 0:00:01]} a6 {[%emt 0:00:11]} 5. Bd3 {[%emt 0:00:07]} Bc5 {[%emt 0:00:32]} 6. Nb3 {[%emt 0:00:03]} Ba7 {[%emt 0:00:10]} 7. O-O {[%emt 0:04:19]} Nc6 {[%emt 0:02:10]} 8. Qe2 {[%emt 0:02:41]} d6 {[%emt 0:03:23]} 9. Be3 {[%emt 0:01:09]} Bxe3 {[%emt 0:01:15]} 10. Qxe3 {[%emt 0:00:02]} Nf6 {[%emt 0:01:20]} 11. c4 {[%emt 0:02:07]} O-O {[%emt 0:02:56]} 12. Nc3 {[%emt 0:00:03]} e5 {[%emt 0:13:31]} 13. Rfd1 {[%emt 0:00:47]} Be6 {[%emt 0:03:08]} 14. Be2 {[%emt 0:07:00]} Qb8 {[%emt 0:03:44]} 15. a4 {[%emt 0:15:13]} b6 {[%emt 0:04:37]} 16. Nd5 {[%emt 0:11:40]} Nd7 {[%emt 0:02:41]} 17. a5 {[%emt 0:10:57]} bxa5 {[%emt 0:08:31]} 18. Nxa5 {[%emt 0:00:05]} Bxd5 {[%emt 0:01:34]} 19. cxd5 {[%emt 0:01:42]} Nxa5 {[%emt 0:00:24]} 20. Rxa5 {[%emt 0:00:03]} Qxb2 {[%emt 0:13:47]} 21. Rxa6 {[%emt 0:00:27]} Rxa6 {[%emt 0:00:37]} 22. Bxa6 {[%emt 0:00:03]} Nc5 {[%emt 0:00:31]} 23. Be2 {[%emt 0:05:45]} Ra8 {[%emt 0:01:58]} 24. Bf3 {[%emt 0:03:01]} g6 {[%emt 0:06:27]} 25. h4 {[%emt 0:03:08]} Ra3 {[%emt 0:06:03]} 26. Qg5 {[%emt 0:08:04]} Ra2 {[%emt 0:05:21]} 27. Qd8+ {[%emt 0:07:16]} Kg7 {[%emt 0:00:09]} 28. Rf1 {[%emt 0:00:01]} h5 {[%emt 0:08:10]} 29. Qxd6 {[%emt 0:03:48]} Nd3 {[%emt 0:00:25]} 30. Qe7 {[%emt 0:02:06]} Nxf2 {[%emt 0:00:56]} 31. d6 {[%emt 0:03:36]} Ng4 {[%emt 0:08:57]} 32. d7 {[%emt 0:03:15]} Qd4+ {[%emt 0:00:48]} 33. Kh1 {[%emt 0:00:21]} Ra1 {[%emt 0:01:03]} 34. Bd1 {[%emt 0:01:39]} Nf2+ {[%emt 0:00:27]} 35. Kh2 {[%emt 0:00:04]} Rxd1 {[%emt 0:00:07]} 36. Rxd1 {[%emt 0:02:31]} Ng4+ {[%emt 0:00:06]} 37. Kh3 {[%emt 0:00:09]} Qxd1 {[%emt 0:00:19]} 38. d8=Q {[%emt 0:00:05]} Qh1+ {[%emt 0:00:24]} 39. Kg3 {[%emt 0:00:01]} Qe1+ {[%emt 0:00:14]} 40. Kh3 {[%emt 0:00:00]} Qh1+ {[%emt 0:00:00]} 41. Kg3 {[%emt 0:00:08]} Qe1+ {[%emt 0:09:41]} 42. Kh3 {[%emt 0:00:29]} Qh1+ {[%emt 0:00:11]} 1/2-1/2

[Event "Mitropa Online Cup Open 2021"]
[Site "Hybrid"]
[Date "2021.05.04"]
[Round "9.5"]
[White "Fecker, Noah"]
[Black "Finek, Vaclav"]
[Result "1/2-1/2"]
[ECO "C43"]
[WhiteElo "2319"]
[BlackElo "2361"]
[Annotator "NA"]
[PlyCount "61"]
[EventDate "2021.05.04"]
[EventType "team-tourn"]
[EventCountry "NET"]
[SourceTitle "playchess.com"]
[Source "ChessBase"]
[SourceQuality "1"]
[WhiteTeam "Switzerland"]
[BlackTeam "Czech Republic"]
[WhiteTeamCountry "SUI"]
[BlackTeamCountry "CZE"]
[TimeControl "40/5400+30:1800+30"]

1. e4 {[%emt 0:00:00]} e5 {[%emt 0:00:15]} 2. Nf3 {[%emt 0:00:06]} Nf6 {[%emt 0:00:14]} 3. d4 {[%emt 0:00:05]} Nxe4 {[%emt 0:00:13]} 4. Bd3 {[%emt 0:00:08]} Nc6 {[%emt 0:00:32]} 5. Bxe4 {[%emt 0:03:19]} d5 {[%emt 0:00:13]} 6. Bg5 {[%emt 0:01:59]} Qd7 {[%emt 0:00:30]} 7. Bd3 {[%emt 0:11:17]} e4 {[%emt 0:00:10]} 8. Be2 {[%emt 0:06:56]} exf3 {[%emt 0:00:40]} 9. Bxf3 {[%emt 0:00:11]} Qf5 {[%emt 0:00:17]} 10. Be3 {[%emt 0:04:21]} Nb4 {[%emt 0:00:28]} 11. Na3 {[%emt 0:01:52]} c6 {[%emt 0:00:24]} 12. O-O {[%emt 0:01:54]} Bd6 {[%emt 0:00:37]} 13. Be2 {[%emt 0:07:16]} O-O {[%emt 0:07:00]} 14. c3 {[%emt 0:02:36]} Na6 {[%emt 0:01:07]} 15. Bd3 {[%emt 0:01:41]} Qf6 {[%emt 0:04:44]} 16. Qh5 {[%emt 0:01:01]} h6 {[%emt 0:01:33]} 17. Rfe1 {[%emt 0:03:32]} Nc7 {[%emt 0:05:36]} 18. Nc2 {[%emt 0:05:38]} Bd7 {[%emt 0:04:26]} 19. Re2 {[%emt 0:08:13]} Ne6 {[%emt 0:06:53]} 20. Qf5 {[%emt 0:02:50]} Qxf5 {[%emt 0:00:07]} 21. Bxf5 {[%emt 0:00:02]} Rfe8 {[%emt 0:03:08]} 22. Rae1 {[%emt 0:00:26]} Nf8 {[%emt 0:08:11]} 23. Bxd7 {[%emt 0:03:49]} Nxd7 {[%emt 0:00:07]} 24. Bc1 {[%emt 0:01:31]} Kf8 {[%emt 0:03:27]} 25. Kf1 {[%emt 0:02:06]} Nf6 {[%emt 0:02:19]} 26. Rxe8+ {[%emt 0:02:06]} Rxe8 {[%emt 0:00:07]} 27. Rxe8+ {[%emt 0:00:14]} Kxe8 {[%emt 0:00:06]} 28. h3 {[%emt 0:00:25]} h5 {[%emt 0:03:59]} 29. Ne1 {[%emt 0:00:39]} g6 {[%emt 0:01:53]} 30. Nd3 {[%emt 0:00:33]} Nd7 {[%emt 0:01:28]} 31. Bf4 {[%emt 0:00:47]} 1/2-1/2